bitfinex/quotes_ETHUSD_20240926
["timestamp","ask_amount","ask_price","bid_price","bid_amount"]
[1727365196922,3.76167,2658.4,2657.8,0.8044]
[1727365197115,3.76149,2658.6,2657.8,0.8044]
[1727365197317,3.76124,2658.7,2657.8,0.8044]
[1727365197521,3.76139,2658.6,2657.8,0.8044]
[1727365197910,3.76152,2658.5,2657.8,0.8044]
[1727365198121,3.76166,2658.4,2657.8,0.8044]
[1727365198659,3.76188,2658.3,2657.8,0.8044]
[1727365198859,3.7614,2658.6,2657.8,0.8044]
[1727365199164,3.76174,2658.4,2657.8,0.8044]
[1727365199323,3.76139,2658.6,2657.8,0.8044]
[1727365199659,3.76152,2658.5,2657.8,0.8044]
[1727365199869,0.53139341,2659.0,2657.8,0.8044]
[1727365200022,3.76139,2658.6,2657.8,0.8044]
[1727365200225,3.76181,2658.3,2657.8,0.8044]
[1727365200427,3.76169,2658.4,2657.8,0.8044]
[1727365200623,3.76091,2659.0,2658.2,3.76194]
[1727365200833,0.0046358,2659.8,2658.4,0.7863]
[1727365200834,3.76071,2659.1,2658.4,0.7863]
[1727365201038,3.76054,2659.2,2658.4,0.7863]
[1727365201246,3.76054,2659.2,2658.4,4.54794]
[1727365201459,3.76054,2659.2,2658.6,0.7614]
[1727365201677,3.76,2659.6,2658.6,4.52265]
[1727365201961,3.76,2659.6,2658.7,3.76122]
[1727365202123,3.76,2659.6,2658.9,0.8052]
[1727365202124,3.7601,2659.5,2658.9,0.8052]
[1727365202322,3.76055,2659.2,2658.9,0.8052]
[1727365202524,3.7643658,2659.8,2658.3,0.8052]
[1727365202525,0.8073,2659.3,2658.3,0.8052]
[1727365202725,3.76081,2659.0,2658.3,0.8052]
[1727365203026,3.76119,2658.8,2658.3,0.8052]
[1727365203223,3.76146,2658.6,2658.3,0.8052]
[1727365203621,3.76087,2659.0,2658.3,0.8052]
[1727365204021,3.76087,2659.0,2658.4,0.456712]
[1727365204273,3.76056,2659.2,2658.4,0.456712]
[1727365204274,3.76056,2659.2,2658.5,0.8289]
[1727365205038,3.76033,2659.4,2658.5,0.821]
[1727365205283,3.76053,2659.2,2658.5,0.821]
[1727365205585,3.76105,2658.9,2658.6,0.458259]
[1727365205790,3.76105,2658.9,2658.5,0.821]
[1727365206446,3.7607,2659.1,2658.5,0.821]
[1727365206652,3.76044,2659.3,2658.5,4.58249]
[1727365207011,3.76013,2659.5,2658.9,0.7559]
[1727365208076,7.52035,2659.5,2658.9,0.7559]
[1727365208398,3.76013,2659.5,2658.9,0.7559]
[1727365208887,3.75989,2659.7,2658.9,0.7559]
[1727365208888,3.76076,2659.1,2658.9,0.7559]
[1727365209059,3.76039,2659.3,2658.9,0.7559]
[1727365209707,3.76016,2659.5,2658.9,0.7559]
[1727365210285,3.76016,2659.5,2658.9,4.51681]
[1727365210525,3.75987,2659.7,2659.0,3.76073]
[1727365210723,3.75987,2659.7,2658.9,4.51681]
[1727365210724,3.75987,2659.7,2659.1,0.827754]
[1727365210937,0.0046358,2659.8,2658.9,0.7559]
[1727365210938,3.76025,2659.4,2658.9,0.7559]
[1727365211719,3.76039,2659.3,2658.9,0.7559]
[1727365212087,3.76069,2659.1,2658.9,0.7559]
[1727365212306,7.52145,2659.1,2658.6,0.8237]
[1727365212503,3.76084,2659.0,2658.6,0.8237]
[1727365213429,3.76148,2658.6,2658.3,0.7784]
[1727365213943,0.801,2659.3,2658.3,0.7784]
[1727365213944,0.0046358,2659.8,2659.5,3.7601]
[1727365214238,0.0046358,2659.8,2659.2,3.76049]
[1727365214817,0.0046358,2659.8,2659.3,0.8288]
[1727365215330,0.0046358,2659.8,2659.6,0.8288]
[1727365215624,0.0046358,2659.8,2659.6,4.58876]
[1727365216822,0.0046358,2659.8,2659.6,5.047636]
[1727365217627,0.0046358,2659.8,2659.7,3.75982]
[1727365220688,0.0046358,2659.8,2659.7,7.60019222]
[1727365221026,0.0046358,2659.8,2659.7,9.10050116]
[1727365221237,0.0046358,2659.8,2659.7,9.02467991]
[1727365221439,0.0046358,2659.8,2659.7,9.85861538]
[1727365222275,0.0046358,2659.8,2659.7,6.30861538]
[1727365222446,0.0046358,2659.8,2659.7,4.52502]
[1727365224146,0.0046358,2659.8,2659.7,3.75982]
[1727365224341,0.0046358,2659.8,2659.6,3.75996]
[1727365224838,0.0046358,2659.8,2659.4,3.76023]
[1727365225184,0.0046358,2659.8,2659.2,3.76051]
[1727365225410,0.0046358,2659.8,2659.4,3.76011]
[1727365226334,0.8113,2659.6,2657.9,1.92066605]
[1727365226492,0.8113,2659.6,2657.9,3.76232]
[1727365226493,4.57232,2658.9,2657.9,3.76232]
[1727365226687,4.57232,2658.9,2658.0,3.7622]
[1727365226688,3.8113,2658.9,2658.0,3.7622]
[1727365226891,3.8113,2658.9,2658.2,3.76182]
[1727365226892,0.8113,2658.9,2658.2,3.76182]
[1727365227091,0.8113,2658.9,2658.4,3.76163]
[1727365227287,0.8113,2658.9,2658.3,0.07522757]
[1727365227535,0.09403161,2658.8,2657.8,0.7774]
[1727365227691,3.7611,2658.8,2657.7,0.0382843]
[1727365227890,0.7614,2658.7,2657.7,0.0382843]
[1727365228508,4.52263,2658.7,2657.7,0.0382843]
[1727365228708,0.751,2658.5,2657.7,0.0382843]
[1727365228949,0.751,2658.1,2657.7,0.0382843]
[1727365229471,0.09406923,2658.0,2657.7,0.0382843]
[1727365229812,0.751,2658.1,2657.7,0.0382843]
[1727365231754,0.8112,2658.4,2657.7,0.0382843]
[1727365232015,0.8112,2658.4,2657.7,0.57283869]
[1727365232144,0.8112,2658.4,2657.7,0.49759973]
[1727365232358,3.76211,2658.1,2657.7,0.0382843]
[1727365232672,4.57316,2658.2,2657.7,0.0382843]
[1727365232819,4.219416,2658.1,2657.7,0.0382843]
[1727365233020,0.8193,2658.0,2657.7,0.0382843]
[1727365233480,0.09407454,2657.9,2657.7,0.0382843]
[1727365233777,3.76251,2657.8,2657.7,0.0382843]
[1727365234459,4.58163,2658.0,2657.7,0.0382843]
[1727365234669,5.3855246,2658.0,2657.7,0.0382843]
[1727365235176,3.76251,2657.8,2657.7,0.0382843]
[1727365235671,0.8193,2658.0,2657.7,0.0382843]
[1727365236437,0.91336183,2658.0,2657.7,0.0382843]
[1727365236870,4.67560183,2658.0,2657.7,0.0382843]
[1727365237095,0.91336183,2658.0,2657.7,0.0382843]
[1727365237377,0.46754718,2657.9,2657.7,0.0382843]
[1727365237578,4.22999718,2657.9,2657.7,0.0382843]
[1727365237782,4.32406892,2657.9,2657.7,0.0382843]
[1727365237989,3.76251,2657.8,2657.7,0.0382843]
[1727365238168,3.85658455,2657.8,2657.7,0.0382843]
[1727365238378,3.76064,2659.2,2658.2,3.76188]
[1727365238694,3.76024,2659.4,2657.9,3.76235]
[1727365238854,0.7529,2659.6,2658.1,4.4912905]
[1727365239191,0.0046358,2659.8,2657.8,4.54843]
[1727365239192,0.8167,2659.1,2657.8,4.5485]
[1727365239337,3.76025,2659.4,2657.7,0.0382843]
[1727365239338,4.57653,2659.7,2658.4,3.8069]
[1727365239564,0.8167,2659.7,2658.5,3.83671608]
[1727365239767,0.8167,2659.7,2658.8,3.0]
[1727365240096,0.0046358,2659.8,2659.1,3.76054]
[1727365240300,0.0046358,2659.8,2659.0,0.8216]
[1727365240465,0.0046358,2659.8,2659.3,3.76035]
[1727365240670,0.0046358,2659.8,2659.4,3.83542158]
[1727365241304,0.0046358,2659.8,2659.1,3.76065]
[1727365241510,0.0046358,2659.8,2659.0,0.8216]
[1727365243338,0.0046358,2659.8,2659.1,0.07520483]
[1727365243470,0.0046358,2659.8,2659.1,3.83582483]
[1727365243790,0.0046358,2659.8,2659.1,3.76062]
[1727365244177,0.0046358,2659.8,2659.0,0.8216]
[1727365244383,0.0046358,2659.8,2658.8,3.76108]
[1727365244624,0.7511,2659.7,2658.6,3.76134]
[1727365244834,0.7511,2659.7,2658.7,3.76121]
[1727365245028,0.7511,2659.7,2659.0,3.76079]
[1727365245194,0.7511,2659.7,2658.4,0.7506]
[1727365245397,0.7511,2659.7,2658.8,3.76106]
[1727365245697,0.7511,2659.7,2658.9,0.376106]
[1727365245892,0.7511,2659.7,2658.8,3.76106]
[1727365246885,0.7511,2659.7,2659.0,3.76079]
[1727365247928,0.7511,2659.7,2659.2,3.7605]
[1727365248801,0.7511,2659.7,2659.0,3.76079]
[1727365249249,0.7511,2659.7,2659.2,3.76051]
[1727365249411,0.0046358,2659.8,2659.3,3.76027]
[1727365250714,0.0046358,2659.8,2659.3,7.52056]
[1727365250919,0.0046358,2659.8,2659.3,3.76027]
[1727365252502,0.0046358,2659.8,2659.4,3.76024]
[1727365253037,0.0046358,2659.8,2659.5,0.07519642]
[1727365253254,0.0046358,2659.8,2659.5,0.45873206]
[1727365253547,0.0046358,2659.8,2659.5,0.38353564]
[1727365253952,0.0046358,2659.8,2659.5,4.14361564]
[1727365254156,0.0046358,2659.8,2659.5,0.38353564]
[1727365255426,0.0046358,2659.8,2659.2,3.76043]
[1727365255763,3.7643358,2659.8,2659.0,3.76071]
[1727365255966,0.8549058,2659.7,2659.0,3.76071]
[1727365256259,5.45263592,2659.7,2658.8,4.58685]
[1727365256560,0.55,2659.4,2657.9,7.43]
[1727365256721,7.521,2659.3,2658.4,3.76156]
[1727365256917,3.76067,2659.1,2658.4,3.76156]
[1727365257461,0.8071,2659.2,2658.5,3.76146]
[1727365257620,0.8071,2659.2,2658.2,7.52367]
[1727365257815,0.8071,2659.2,2658.2,3.7618]
[1727365257816,0.8233,2659.0,2658.2,3.7618]
[1727365258046,3.76111,2658.8,2658.0,7.5243]
[1727365258256,3.76111,2658.8,2658.0,3.76214]
[1727365258460,3.76111,2658.8,2658.0,7.52428]
[1727365258617,4.58418,2659.0,2658.0,3.76214]
[1727365258823,4.58418,2659.0,2658.1,3.762]
[1727365258824,4.219388,2658.9,2658.1,3.762]
[1727365259043,3.76124,2658.7,2657.9,3.76225]
[1727365259329,5.00006741,2658.6,2657.7,0.8033843]
[1727365259643,3.76182,2658.3,2657.7,0.0382843]
[1727365259841,0.09405716,2658.2,2657.7,0.0382843]
[1727365260075,0.8177,2658.1,2657.7,0.0382843]
[1727365260275,4.55651,2657.8,2657.7,0.0382843]
[1727365260424,10.7803561,2657.8,2657.7,0.0382843]
[1727365260824,9.32019802,2657.8,2657.7,0.0382843]
[1727365262669,5.77019802,2657.8,2657.7,0.0382843]
[1727365262971,7.55651,2657.8,2657.7,0.0382843]
[1727365263128,4.55651,2657.8,2657.7,0.0382843]
[1727365263576,3.76197,2658.2,2657.7,0.0382843]
[1727365264074,3.76233,2658.0,2657.7,0.0382843]
[1727365264469,4.58369,2658.3,2657.7,0.0382843]
[1727365264826,3.76161,2658.5,2657.7,0.0382843]
[1727365265937,3.76161,2658.5,2657.7,0.50089173]
[1727365266164,3.76161,2658.5,2657.7,0.0382843]
[1727365266524,0.8003,2658.6,2657.8,3.76248]
[1727365267053,4.5617,2658.6,2657.7,0.0382843]
[1727365267265,4.56174,2658.6,2657.7,0.0382843]
[1727365267560,3.76164,2658.5,2657.7,0.50087073]
[1727365267766,3.76163,2658.5,2657.7,0.50087073]
[1727365267923,3.76181,2658.3,2657.7,0.50087073]
[1727365268324,0.0046358,2659.8,2658.3,0.7688]
[1727365268563,0.0046358,2659.8,2659.0,0.7688]
[1727365268725,0.0046358,2659.8,2659.0,6.2773934]
[1727365268931,0.0046358,2659.8,2659.0,4.52949]
[1727365269161,0.0046358,2659.8,2659.0,3.7688]
[1727365269371,0.0046358,2659.8,2659.0,0.7688]
[1727365269554,3.76002,2659.6,2659.0,0.7688]
[1727365269782,3.7643958,2659.8,2659.0,0.7688]
[1727365269989,0.0046358,2659.8,2659.0,0.7688]
[1727365270294,0.0046358,2659.8,2659.1,0.5262469]
[1727365270490,0.0046358,2659.8,2659.2,3.7605]
[1727365270677,0.0046358,2659.8,2659.3,3.0]
[1727365271597,0.0046358,2659.8,2659.3,6.76029]
[1727365271904,0.0046358,2659.8,2659.3,6.76028]
[1727365272057,0.0046358,2659.8,2659.5,3.7601]
[1727365272562,0.0046358,2659.8,2659.5,3.76]
[1727365273097,0.0046358,2659.8,2659.4,0.676028]
[1727365273253,0.0046358,2659.8,2659.2,3.0]
[1727365273476,0.0046358,2659.8,2659.3,3.76038]
[1727365273897,0.0046358,2659.8,2659.1,0.5262469]
[1727365274479,0.0046358,2659.8,2659.1,4.2869069]
[1727365275214,0.0046358,2659.8,2659.4,3.76021]
[1727365275527,0.0046358,2659.8,2659.6,3.75987]
[1727365275692,0.0046358,2659.8,2659.7,3.75982]
[1727365275892,0.0046358,2659.8,2659.5,4.512046]
[1727365276214,0.0046358,2659.8,2659.5,0.752056]
[1727365277023,0.0046358,2659.8,2659.1,0.5262469]
[1727365277024,0.0046358,2659.8,2659.1,4.2867869]
[1727365277317,0.0046358,2659.8,2659.2,3.76052]
[1727365277530,0.0046358,2659.8,2659.4,3.76017]
[1727365278075,0.0046358,2659.8,2659.5,3.76007]
[1727365278515,0.0046358,2659.8,2659.6,3.75982]
[1727365278703,0.0046358,2659.8,2659.4,7.52028]
[1727365278912,0.0046358,2659.8,2659.5,3.76007]
[1727365279110,0.0046358,2659.8,2659.2,3.76044]
[1727365279417,0.0046358,2659.8,2659.3,3.7603]
[1727365279639,0.0046358,2659.8,2659.1,3.76059]
[1727365279918,0.0046358,2659.8,2659.2,3.76051]
[1727365280226,0.0046358,2659.8,2659.1,3.76064]
[1727365280432,3.7643158,2659.8,2659.1,3.76064]
[1727365280729,3.7643158,2659.8,2658.3,3.76169]
[1727365280730,0.7765,2659.0,2658.0,1.58936742]
[1727365280924,0.7765,2659.0,2658.1,3.76204]
[1727365281093,4.53739,2659.0,2658.2,3.76193]
[1727365281624,4.53739,2659.0,2658.1,3.76204]
[1727365281625,0.7671,2659.6,2658.7,3.76121]
[1727365281793,3.76018,2659.5,2658.7,0.376121]
[1727365281985,0.7671,2659.6,2658.6,3.76129]
[1727365281986,7.5207,2659.4,2658.6,3.76129]
[1727365282319,3.76033,2659.4,2658.6,3.76129]
[1727365282531,3.76033,2659.4,2658.6,7.52258]
[1727365282831,0.0046358,2659.8,2658.7,0.376129]
[1727365282832,3.7644258,2659.8,2658.7,0.376129]
[1727365283027,0.0046358,2659.8,2659.0,3.76079]
[1727365283213,3.7643758,2659.8,2659.1,4.136739]
[1727365283521,0.0046358,2659.8,2659.1,4.941039]
[1727365284031,7.52014,2659.6,2658.8,3.76099]
[1727365284224,3.76037,2659.4,2658.7,0.376129]
[1727365284725,7.52074,2659.4,2658.7,0.376129]
[1727365284934,3.76037,2659.4,2658.7,0.376129]
[1727365285432,3.76059,2659.2,2658.5,0.8043]
[1727365285803,3.76091,2659.0,2658.5,0.8043]
[1727365286642,3.7609,2659.0,2658.5,0.8043]
[1727365287306,7.52123,2659.2,2658.5,4.56581]
[1727365287506,3.76081,2659.0,2658.6,0.456581]
[1727365287702,3.76081,2659.0,2658.5,0.8043]
[1727365288492,3.76081,2659.0,2658.2,0.7908]
[1727365288493,3.76111,2658.8,2658.2,0.7908]
[1727365288836,7.52172,2659.0,2658.3,3.76178]
[1727365288998,7.52172,2659.0,2658.3,4.593258]
[1727365289194,3.76096,2658.9,2658.3,3.76178]
[1727365289516,0.8271,2658.8,2657.5,0.7908]
[1727365289831,0.8271,2658.8,2657.7,3.8008543]
[1727365290140,3.76187,2658.3,2657.8,0.38008543]
[1727365290307,7.52297,2658.6,2657.8,4.14258543]
[1727365290636,3.76146,2658.6,2657.9,3.76234]
[1727365290790,0.8271,2658.8,2658.0,0.41424254]
[1727365291133,3.76124,2658.7,2658.1,3.76205]
[1727365291337,3.76124,2658.7,2658.0,0.7573]
[1727365291523,3.76124,2658.7,2658.1,3.76199]
[1727365291901,0.8271,2658.8,2658.1,3.76199]
[1727365292101,4.58828,2658.8,2658.2,0.828139]
[1727365292331,0.8271,2658.8,2658.2,4.590059]
[1727365292560,4.58293,2659.2,2658.4,3.76158]
[1727365292767,3.76072,2659.1,2658.4,3.76158]
[1727365292919,3.76072,2659.1,2658.4,3.76157]
[1727365293125,3.76072,2659.1,2658.5,3.76145]
[1727365293319,3.76072,2659.1,2658.5,4.55965259]
[1727365293753,3.76035,2659.4,2658.6,3.7613]
[1727365293951,3.76035,2659.4,2658.7,0.8]
[1727365294269,3.76053,2659.2,2658.7,0.8]
[1727365294565,3.76042,2659.3,2658.7,4.56123]
[1727365294745,3.76042,2659.3,2658.7,5.47330326]
[1727365295562,3.76035,2659.4,2658.7,1.71207326]
[1727365295720,3.76061,2659.2,2658.5,4.54723]
[1727365295922,4.59109,2659.5,2658.8,3.76109]
[1727365296159,0.39369036,2659.7,2658.5,0.7858]
[1727365296323,3.76033,2659.4,2658.8,3.76109]
[1727365296520,7.52014,2659.6,2658.8,7.52211]
[1727365296720,3.76004,2659.6,2658.8,3.76102]
[1727365296920,3.76004,2659.6,2658.9,3.76083]
[1727365297159,3.76004,2659.6,2659.0,4.512955]
[1727365297325,3.76004,2659.6,2659.0,0.752185]
[1727365297326,3.76011,2659.5,2659.0,0.752185]
[1727365298232,3.76011,2659.5,2658.8,3.76108]
[1727365298433,3.76035,2659.4,2658.8,7.52209]
[1727365298632,3.76035,2659.4,2658.8,7.52202]
[1727365299068,3.76035,2659.4,2658.8,3.76101]
[1727365299373,7.52005,2659.6,2658.8,3.76101]
[1727365299554,3.76,2659.6,2658.9,4.136971]
[1727365299805,3.76017,2659.5,2658.9,0.376101]
[1727365300067,3.76017,2659.5,2658.9,4.137031]
[1727365300227,3.8540966,2659.6,2658.9,0.376101]
[1727365300430,3.76032,2659.4,2658.8,3.76104]
[1727365301367,3.76047,2659.3,2658.6,3.76131]
[1727365301872,4.52702,2659.2,2658.5,0.7858]
[1727365302027,0.7665,2659.2,2658.5,4.54723]
[1727365302228,0.7665,2659.2,2658.5,1.240523]
[1727365302423,3.7609,2659.0,2658.5,0.7858]
[1727365303039,3.76104,2658.9,2658.4,3.0]
[1727365303457,3.7609,2659.0,2658.4,3.0]
[1727365303641,3.76034,2659.4,2658.8,0.8231]
[1727365303976,3.76048,2659.3,2658.8,0.8231]
[1727365304131,7.52067,2659.4,2658.8,0.8231]
[1727365304338,3.76047,2659.3,2658.8,0.8231]
[1727365304875,3.76054,2659.2,2658.8,0.8231]
[1727365306165,3.76033,2659.4,2658.8,0.8231]
[1727365306374,3.7603,2659.4,2658.8,4.5841]
[1727365306575,3.7603,2659.4,2658.8,8.34512]
[1727365306866,3.7603,2659.4,2658.8,8.34511]
[1727365307165,3.7603,2659.4,2658.8,4.5841]
[1727365307347,3.7603,2659.4,2658.8,8.34509]
[1727365307544,3.76083,2659.0,2658.4,0.8294]
[1727365307965,3.76102,2658.9,2658.4,0.8294]
[1727365308488,3.76128,2658.7,2658.1,0.8157]
[1727365308774,3.76145,2658.6,2658.1,0.8157]
[1727365309134,7.52242,2658.8,2658.1,0.8157]
[1727365309335,3.76119,2658.8,2658.1,0.8157]
[1727365309788,3.76144,2658.6,2658.1,0.8157]
[1727365310071,3.76124,2658.7,2658.1,0.8157]
[1727365310679,3.76139,2658.6,2658.1,0.8157]
[1727365311108,3.76177,2658.4,2657.8,0.778]
[1727365311397,3.76224,2658.0,2657.7,0.0382843]
[1727365311607,3.76251,2657.8,2657.7,0.0382843]
[1727365311765,4.5244058,2657.8,2657.7,0.0382843]
[1727365311971,4.61848296,2657.8,2657.7,0.0382843]
[1727365312178,4.6184829,2657.8,2657.7,0.0382843]
[1727365313054,3.0,2658.2,2657.7,0.0382843]
[1727365313055,7.52434,2658.1,2657.7,0.0382843]
[1727365313260,3.76232,2658.0,2657.7,0.0382843]
[1727365313453,7.52467,2658.0,2657.7,0.0382843]
[1727365313657,3.76232,2658.0,2657.7,0.0382843]
[1727365313893,3.7624,2657.9,2657.7,0.0382843]
[1727365314056,3.76232,2658.0,2657.7,0.0382843]
[1727365314259,5.08621,2657.8,2657.7,0.0382843]
[1727365314572,8.18029974,2657.8,2657.7,0.0382843]
[1727365314907,8.08621,2657.8,2657.7,0.0382843]
[1727365315804,3.76364,2657.0,2656.9,0.0382843]
[1727365316803,0.7737,2657.1,2656.9,0.0382843]
[1727365317105,4.53731,2657.1,2656.9,0.0382843]
[1727365317306,3.76364,2657.0,2656.9,0.0382843]
[1727365317956,4.40774378,2657.0,2656.9,0.0382843]
[1727365318157,7.40775975,2657.0,2656.9,0.0382843]
[1727365318360,8.07814,2657.0,2656.9,0.0382843]
[1727365319255,10.0206723,2657.0,2656.9,0.0382843]
[1727365320363,10.0206723,2657.0,2656.9,1.44e-05]
[1727365320717,10.56511734,2657.0,2656.9,1.44e-05]
[1727365321011,10.0206723,2657.0,2656.9,1.44e-05]
[1727365321572,10.56511734,2657.0,2656.9,1.44e-05]
[1727365321777,10.95915936,2657.0,2656.9,1.44e-05]
[1727365322391,10.41471432,2657.0,2656.9,1.44e-05]
[1727365322724,10.5387169,2657.0,2656.9,1.44e-05]
[1727365323278,11.04482861,2657.0,2656.9,1.44e-05]
[1727365323828,11.04482861,2657.0,2656.2,0.0382843]
[1727365323829,8.12903,2656.3,2656.2,0.0382843]
[1727365323979,11.94922299,2656.3,2656.2,0.0382843]
[1727365324623,3.55,2656.2,2655.4,0.0382843]
[1727365324830,7.37019299,2656.3,2655.4,0.0382843]
[1727365324831,3.76576,2655.5,2655.4,0.0382843]
[1727365325327,8.13016,2655.5,2655.4,0.0382843]
[1727365327882,8.13016,2655.5,2654.6,0.0382843]
[1727365327883,3.7669,2654.7,2654.6,0.0382843]
[1727365328496,3.76676,2654.8,2654.6,0.0382843]
[1727365328789,3.76665,2654.9,2654.6,0.0382843]
[1727365329010,3.76648,2655.0,2654.6,0.0382843]
[1727365329011,3.76684,2654.8,2654.6,0.0382843]
[1727365329229,3.76648,2655.0,2654.6,0.0382843]
[1727365329393,3.76624,2655.2,2654.7,0.8306]
[1727365329600,3.76582,2655.5,2654.8,3.8419647]
[1727365329943,3.76568,2655.6,2654.9,4.98140647]
[1727365330328,3.76552,2655.7,2654.9,1.21479647]
[1727365330543,3.76632,2655.2,2654.9,0.8306]
[1727365330864,3.82019299,2655.7,2654.9,0.8306]
[1727365330865,3.76647,2655.0,2654.9,0.8306]
[1727365331065,3.76634,2655.1,2654.6,0.0382843]
[1727365331066,3.82019299,2655.1,2654.6,0.8030843]
[1727365331278,3.76627,2655.2,2654.6,0.8030843]
[1727365331447,7.53195,2655.4,2654.6,4.5701043]
[1727365331646,3.76571,2655.6,2654.8,0.8308]
[1727365331844,3.76571,2655.6,2655.0,0.8308]
[1727365332353,3.82019299,2655.4,2655.0,0.8308]
[1727365332556,3.76633,2655.1,2655.0,0.8308]
[1727365332762,3.76677,2654.8,2654.7,0.7501]
[1727365333786,3.7669,2654.7,2654.6,0.0382843]
[1727365335285,3.86108016,2654.7,2654.6,0.0382843]
[1727365335488,3.7669,2654.7,2654.6,0.0382843]
[1727365337669,4.520267,2654.7,2654.6,0.0382843]
[1727365338193,3.7669,2654.7,2654.6,0.0382843]
[1727365338345,4.57877729,2655.4,2654.6,0.0382843]
[1727365338550,3.7667,2654.9,2654.7,0.7682]
[1727365339007,3.7669,2654.7,2654.6,0.0382843]
[1727365339297,8.34045899,2654.7,2654.6,0.0382843]
[1727365339847,11.34045899,2654.7,2654.6,0.0382843]
[1727365340289,3.7669,2654.7,2654.6,0.0382843]
[1727365340581,3.76676,2654.8,2654.6,0.0382843]
[1727365340745,3.76673,2654.9,2654.6,0.0382843]
[1727365340945,3.76653,2655.0,2654.6,0.0382843]
[1727365341492,3.7669,2654.7,2654.6,0.0382843]
[1727365342051,7.58709299,2654.7,2654.6,0.0382843]
[1727365342283,3.7669,2654.7,2654.6,0.0382843]
[1727365342446,11.72248529,2654.7,2654.6,0.0382843]
[1727365342859,7.9022923,2654.7,2654.6,0.0382843]
[1727365343080,11.72248529,2654.7,2654.6,0.0382843]
[1727365343391,12.48318529,2654.7,2654.6,0.0382843]
[1727365344551,8.6629923,2654.7,2654.6,0.0382843]
[1727365344758,12.48318529,2654.7,2654.6,0.0382843]
[1727365345066,8.6629923,2654.7,2654.6,0.0382843]
[1727365345265,12.48318529,2654.7,2654.6,0.0382843]
[1727365346697,3.76657,2655.0,2654.6,0.0382843]
[1727365346866,3.7667,2654.9,2654.6,0.0382843]
[1727365347062,3.76643,2655.1,2654.6,0.0382843]
[1727365347297,3.76677,2654.8,2654.6,0.0382843]
[1727365347494,3.7669,2654.7,2654.6,0.0382843]
[1727365348982,3.76677,2654.8,2654.6,0.0382843]
[1727365349781,0.39390027,2655.0,2654.6,0.0382843]
[1727365350095,3.76662,2654.9,2654.6,0.0382843]
[1727365350271,0.39390027,2655.0,2654.6,0.0382843]
[1727365350272,3.7669,2654.7,2654.6,0.0382843]
[1727365353206,0.39390027,2655.0,2654.7,0.8328]
[1727365353371,0.39390027,2655.0,2654.7,1.29660543]
[1727365353700,4.16044027,2655.0,2654.7,1.29660543]
[1727365353911,0.39390027,2655.0,2654.7,1.29660543]
[1727365354106,3.76662,2654.9,2654.7,1.29660543]
[1727365354408,3.76662,2654.9,2654.6,0.0382843]
[1727365354409,3.7669,2654.7,2654.6,0.0382843]
[1727365355501,3.76677,2654.8,2654.6,0.0382843]
[1727365356602,3.7669,2654.7,2654.6,0.0382843]
[1727365357633,4.91170513,2654.7,2654.6,0.0382843]
[1727365357837,3.0,2655.2,2654.7,0.7726]
[1727365358122,3.76644,2655.1,2654.7,0.7726]
[1727365358734,3.0,2655.4,2654.7,0.7726]
[1727365358891,3.7662,2655.2,2654.7,0.7726]
[1727365359092,3.7662,2655.2,2654.7,4.99729943]
[1727365359336,3.76647,2655.0,2654.7,1.23039943]
[1727365359499,3.76647,2655.0,2654.7,0.7726]
[1727365359840,3.76629,2655.2,2654.7,0.7726]
[1727365360038,7.53258,2655.2,2654.7,4.53947]
[1727365360333,3.76658,2655.0,2654.6,0.0382843]
[1727365360631,0.09417142,2654.9,2654.6,0.0382843]
[1727365360829,3.7669,2654.7,2654.6,0.0382843]
[1727365363331,3.76684,2654.8,2654.6,0.0382843]
[1727365363527,3.7669,2654.7,2654.6,0.0382843]
[1727365363823,7.53372,2654.8,2654.6,0.0382843]
[1727365364032,3.7669,2654.7,2654.6,0.0382843]
[1727365364389,4.520274,2654.7,2654.6,0.0382843]
[1727365365819,3.7669,2654.7,2654.6,0.0382843]
[1727365366193,3.76543,2655.8,2654.6,0.0382843]
[1727365366194,3.82019299,2655.6,2654.6,0.0382843]
[1727365366493,3.766,2655.4,2654.8,4.55299]
[1727365366719,4.64619299,2655.6,2654.8,0.7863]
[1727365367029,3.76616,2655.3,2654.8,0.7863]
[1727365367335,3.76642,2655.1,2654.8,0.7863]
[1727365367646,0.4646193,2655.5,2654.8,0.7863]
[1727365367941,3.76627,2655.2,2654.8,0.7863]
[1727365368101,3.76641,2655.1,2654.8,0.7863]
[1727365368312,4.64619299,2655.6,2654.6,0.0382843]
[1727365368634,3.76634,2655.1,2654.6,3.8053243]
[1727365368832,3.76549,2655.7,2654.8,0.7863]
[1727365369133,3.76576,2655.5,2655.0,3.76636]
[1727365369696,3.76576,2655.5,2654.9,3.76654]
[1727365369897,3.76576,2655.5,2654.9,7.53309]
[1727365370138,3.76576,2655.5,2655.0,3.76641]
[1727365370343,3.76576,2655.5,2655.1,0.753295]
[1727365370501,4.55079,2655.4,2654.7,3.76682]
[1727365370703,4.55079,2655.4,2654.9,4.55151]
[1727365370704,3.76599,2655.4,2654.9,4.55151]
[1727365370905,3.76599,2655.4,2654.9,0.7849]
[1727365371212,3.76607,2655.3,2654.9,1.240072]
[1727365371411,3.76622,2655.2,2654.9,1.240072]
[1727365371946,3.76635,2655.1,2654.9,1.240072]
[1727365372244,3.76635,2655.1,2654.6,0.0382843]
[1727365372748,3.76657,2655.0,2654.6,0.0382843]
[1727365373748,3.76677,2654.8,2654.6,0.0382843]
[1727365374101,3.7669,2654.7,2654.6,0.0382843]
[1727365374302,3.76677,2654.8,2654.6,0.0382843]
[1727365375651,3.7669,2654.7,2654.6,0.0382843]
[1727365375847,3.76677,2654.8,2654.6,0.0382843]
[1727365376217,3.76664,2654.9,2654.6,0.0382843]
[1727365376543,3.76686,2654.8,2654.6,0.0382843]
[1727365377037,3.86103439,2654.8,2654.6,0.0382843]
[1727365377444,3.7669,2654.7,2654.6,0.0382843]
[1727365378244,11.40649299,2654.7,2654.6,0.0382843]
[1727365378547,13.47382829,2654.7,2654.6,0.0382843]
[1727365378709,13.47382829,2654.7,2653.8,0.0382843]